bitfinex/quotes_ETHUSD_20250404
["timestamp","ask_amount","ask_price","bid_price","bid_amount"]
[1743795958246,11.02687,1813.8,1813.4,7.10524773]
[1743795958616,11.02687,1813.8,1813.4,12.61965773]
[1743795958816,5.51341,1813.8,1813.5,5.51419]
[1743795959410,5.51341,1813.8,1813.5,6.77061991]
[1743795959643,5.51341,1813.8,1813.5,6.94302822]
[1743795959845,5.51341,1813.8,1813.5,6.94288822]
[1743795960241,5.51365,1813.7,1813.5,1.42883822]
[1743795960446,5.51334,1813.8,1813.5,0.17240831]
[1743795960649,0.1,1813.9,1813.6,5.56891584]
[1743795960848,5.61299,1813.9,1813.6,5.51378]
[1743795961057,0.1,1813.9,1813.7,5.5684528]
[1743795961260,0.1,1813.9,1813.8,1.37664528]
[1743795961552,11.12625,1813.9,1813.6,0.7763]
[1743795961753,5.61298,1813.9,1813.6,6.29017]
[1743795961941,5.51359,1813.7,1813.6,0.17240831]
[1743795962323,17.28377,1813.8,1813.6,0.17240831]
[1743795962524,5.499,1813.8,1813.6,0.17240831]
[1743795962853,11.0124,1813.8,1813.7,0.17225966]
[1743795963034,5.499,1813.8,1813.7,0.17225966]
[1743795963455,5.499,1813.8,1813.6,5.68606966]
[1743795963775,5.499,1813.8,1813.6,0.17225966]
[1743795963919,5.51359,1813.7,1813.6,0.17225966]
[1743795964823,5.51408,1813.6,1813.4,0.17225966]
[1743795965224,5.51419,1813.5,1813.4,0.17225966]
[1743795965651,5.51408,1813.6,1813.4,0.17225966]
[1743795965850,5.51408,1813.6,1813.3,0.17225966]
[1743795966050,6.34489,1813.7,1813.3,5.68694966]
[1743795966355,11.02871,1813.5,1813.3,0.17225966]
[1743795966556,5.51392,1813.6,1813.4,0.17225966]
[1743795967323,6.34495,1813.7,1813.4,0.17225966]
[1743795967821,5.51392,1813.6,1813.5,0.17225966]
[1743795968423,11.02803,1813.6,1813.3,0.17225966]
[1743795968626,0.9289,1813.9,1813.4,0.81614199]
[1743795968964,5.51338,1813.8,1813.4,6.27544]
[1743795969157,5.51368,1813.7,1813.4,6.27544]
[1743795969345,5.51368,1813.7,1813.5,0.627544]
[1743795969653,5.51368,1813.7,1813.5,0.79980366]
[1743795970157,0.1748444,1813.6,1813.5,0.17225966]
[1743795970461,6.31559,1813.6,1813.5,0.17225966]
[1743795970754,9.4904344,1813.6,1813.5,0.17225966]
[1743795970956,9.4995344,1813.6,1813.5,0.17225966]
[1743795971163,5.51494,1813.3,1812.9,5.68825966]
[1743795971460,5.51541,1813.1,1813.0,0.56882597]
[1743795971658,0.1748444,1813.1,1812.9,0.17225966]
[1743795971879,5.51571,1813.0,1812.9,0.17225966]
[1743795972231,5.6905544,1813.0,1812.9,0.17225966]
[1743795972426,5.51632,1812.8,1812.7,0.17225966]
[1743795972959,5.68995532,1812.8,1812.7,0.17225966]
[1743795973162,0.17363532,1812.8,1812.7,0.17225966]
[1743795973342,5.68995532,1812.8,1812.7,0.17225966]
[1743795973543,5.68995532,1812.8,1812.6,0.17225966]
[1743795973739,0.17363532,1812.8,1812.6,0.17225966]
[1743795973939,0.17363532,1812.8,1812.6,0.74120563]
[1743795974132,0.17363532,1812.8,1812.6,6.25797563]
[1743795974859,0.17363532,1812.8,1812.6,0.74120563]
[1743795975065,0.17363532,1812.8,1812.6,0.56894597]
[1743795975243,0.17363532,1812.8,1812.6,6.08583597]
[1743795975854,0.17363532,1812.8,1812.6,0.56894597]
[1743795976047,5.69007532,1812.8,1812.5,0.17225966]
[1743795976458,0.17363532,1812.8,1812.5,0.17225966]
[1743795976855,5.51678,1812.7,1812.5,0.17225966]
[1743795977268,0.17363532,1812.6,1812.5,0.17225966]
[1743795977571,5.51678,1812.7,1812.5,0.17225966]
[1743795977737,0.17363532,1812.6,1812.3,6.49401966]
[1743795977938,0.17363532,1812.6,1812.4,0.64940197]
[1743795978137,5.51678,1812.7,1812.4,0.64940197]
[1743795978367,0.17363532,1812.5,1812.4,0.64940197]
[1743795978558,5.51678,1812.7,1812.4,0.64940197]
[1743795978758,0.17363532,1812.5,1812.3,6.49393966]
[1743795978957,11.03369,1812.7,1812.3,6.49393966]
[1743795979140,0.17363532,1812.4,1812.3,6.49393966]
[1743795979341,5.51678,1812.7,1812.3,12.01162966]
[1743795979867,0.17363532,1812.6,1812.3,12.01162966]
[1743795980038,5.51678,1812.7,1812.4,5.51751]
[1743795980240,0.17363532,1812.6,1812.3,13.21283263]
[1743795980443,5.51678,1812.7,1812.4,0.17225966]
[1743795980771,0.17363532,1812.6,1812.4,5.68979966]
[1743795980949,5.51724,1812.5,1812.4,0.17225966]
[1743795981266,0.17363532,1812.5,1812.4,0.17225966]
[1743795981650,14.84369,1812.7,1812.4,0.17225966]
[1743795981849,0.17042417,1812.6,1812.3,13.21294263]
[1743795982168,9.32685,1812.7,1812.3,7.69512263]
[1743795982372,0.17042417,1812.5,1812.3,7.69512263]
[1743795982572,11.0335,1812.7,1812.4,0.76951226]
[1743795982774,0.17042417,1812.4,1812.3,2.17742263]
[1743795982942,5.51724,1812.5,1812.3,2.17742263]
[1743795983152,0.1682969,1812.4,1812.2,0.17225966]
[1743795983678,0.1682969,1812.4,1812.2,5.69039966]
[1743795983901,0.1682969,1812.4,1812.2,5.69025966]
[1743795984110,0.1682969,1812.4,1812.2,11.26346369]
[1743795984268,0.1682969,1812.4,1812.2,5.69025966]
[1743795984602,0.1682969,1812.3,1812.2,11.03603]
[1743795984897,6.2863,1812.9,1812.5,5.517]
[1743795985198,0.16800483,1812.8,1812.5,5.517]
[1743795985553,0.16800483,1812.8,1812.5,5.51694]
[1743795986175,5.68456483,1812.8,1812.4,5.51749]
[1743795986362,5.51664,1812.7,1812.4,5.51738]
[1743795986566,5.6856461,1812.7,1812.4,5.51738]
[1743795986768,0.1690061,1812.7,1812.3,0.7887]
[1743795987082,0.1690061,1812.7,1812.4,11.03508]
[1743795987490,5.6856961,1812.7,1812.4,5.51754]
[1743795987784,0.1690061,1812.7,1812.3,1.5376293]
[1743795987987,11.80239,1812.9,1812.5,5.51702]
[1743795988288,0.28775486,1813.3,1812.4,0.05517014]
[1743795988289,6.27251,1813.3,1813.0,5.51555]
[1743795988786,0.7576,1813.3,1813.0,11.03116]
[1743795988989,11.85061,1813.6,1813.2,5.51489]
[1743795989191,5.51508,1813.3,1812.9,6.3015]
[1743795989356,5.51508,1813.3,1812.9,11.81738]
[1743795989859,5.51561,1813.1,1812.7,6.3491]
[1743795990060,5.51547,1813.1,1812.8,5.51611]
[1743795990259,5.51547,1813.1,1812.7,7.02463627]
[1743795990487,11.03109,1813.1,1812.7,12.71344062]
[1743795990652,5.51589,1813.0,1812.7,1.68050062]
[1743795990850,5.51611,1812.9,1812.7,0.17233435]
[1743795991052,5.51632,1812.8,1812.7,0.17233435]
[1743795991289,6.29511,1812.9,1812.7,0.17233435]
[1743795991459,5.51632,1812.8,1812.7,0.17233435]
[1743795991784,10.99632,1812.8,1812.7,0.17233435]
[1743795991957,5.48,1812.8,1812.5,11.03431]
[1743795992157,5.48,1812.8,1812.5,5.51708]
[1743795992357,10.99633,1812.8,1812.5,5.51708]
[1743795992875,10.99633,1812.8,1812.3,6.30674]
[1743795992876,5.51697,1812.6,1812.3,6.30674]
[1743795993184,10.99637,1812.8,1812.4,5.57268947]
[1743795993390,5.51672,1812.7,1812.4,5.51752]
[1743795993688,5.51721,1812.6,1812.3,0.789]
[1743795993887,6.3372,1812.5,1812.2,5.51809]
[1743795994086,0.8198,1812.5,1812.2,5.518]
[1743795994288,6.33714,1812.5,1812.2,5.518]
[1743795994587,5.51759,1812.4,1812.1,0.17239006]
[1743795994769,10.99659,1812.4,1812.1,0.17239006]
[1743795994966,5.51815,1812.2,1812.1,0.17239006]
[1743795995191,6.29785,1812.2,1812.1,0.17239006]
[1743795995366,9.29785,1812.2,1812.1,0.17239006]
[1743795995567,5.51922,1811.9,1811.6,0.8295]
[1743795995766,5.51922,1811.9,1811.5,5.52026]
[1743795995966,5.479,1812.0,1811.4,5.69293006]
[1743795995967,5.479,1812.0,1811.4,6.45793006]
[1743795996275,11.03859,1811.9,1811.5,6.16591301]
[1743795996479,5.51925,1811.9,1811.5,11.68607301]
[1743795996677,11.0385,1811.9,1811.5,6.16591301]
[1743795996988,5.51925,1811.9,1811.5,6.16591301]
[1743795997194,5.51925,1811.9,1811.6,5.51985]
[1743795997571,11.03851,1811.9,1811.5,6.16591301]
[1743795997772,11.03855,1811.9,1811.5,6.16590301]
[1743795998168,0.7997,1811.8,1811.3,5.52086]
[1743795998375,5.51997,1811.7,1811.3,11.04158]
[1743795998556,0.7997,1811.8,1811.2,0.97306815]
[1743795998762,5.52044,1811.5,1811.2,0.97306815]
[1743795999402,5.52059,1811.4,1811.2,0.8006]
[1743795999568,5.52059,1811.4,1811.1,0.1]
[1743796000191,0.15099836,1811.3,1811.1,0.1]
[1743796000386,5.52059,1811.4,1811.1,0.1]
[1743796000691,0.15099836,1811.2,1811.1,0.1]
[1743796000995,0.14352463,1811.2,1811.1,0.1]
[1743796001196,6.34459,1811.4,1811.1,0.1]
[1743796001395,5.52108,1811.3,1811.1,0.1]
[1743796001580,5.66460463,1811.3,1811.1,0.1]
[1743796001763,5.66457463,1811.3,1811.1,0.1]
[1743796002866,0.14352463,1811.3,1811.1,5.62138]
[1743796003061,5.52031,1811.5,1811.1,11.14269]
[1743796003283,0.14277249,1811.4,1811.1,6.735579]
[1743796003577,5.52101,1811.3,1811.1,0.1]
[1743796004113,0.14277249,1811.2,1811.1,0.1]
[1743796004475,5.52066,1811.4,1811.1,0.1]
[1743796004677,0.14277249,1811.2,1811.1,0.1]
[1743796004879,11.00133,1811.5,1811.1,5.62144]
[1743796005083,0.14277249,1811.2,1811.1,6.73578]
[1743796005383,16.52282,1811.5,1811.1,6.73574]
[1743796005790,0.14277249,1811.4,1811.1,5.6214]
[1743796005992,5.66337249,1811.4,1811.1,5.6214]
[1743796006295,5.66337249,1811.4,1811.1,0.1]
[1743796006599,5.52101,1811.3,1811.1,0.1]
[1743796006802,5.66337249,1811.4,1811.1,0.1]
[1743796007179,5.66337249,1811.4,1811.1,5.62139]
[1743796007502,5.52092,1811.3,1811.1,0.1]
[1743796007664,11.04118,1811.4,1811.1,0.1]
[1743796007865,5.5212,1811.2,1811.1,0.1]
[1743796008483,0.14277249,1811.2,1811.1,0.1]
[1743796009102,5.52092,1811.3,1811.1,0.1]
[1743796009297,0.14277249,1811.2,1811.1,0.1]
[1743796009482,0.14277249,1811.2,1811.1,6.434]
[1743796009676,0.14277249,1811.2,1811.1,7.629564]
[1743796010089,5.5206,1811.4,1811.1,7.629564]
[1743796010269,5.5206,1811.4,1811.1,6.434]
[1743796010470,0.14277249,1811.3,1811.1,6.434]
[1743796010669,5.5206,1811.4,1811.1,6.434]
[1743796010870,16.52377,1811.5,1811.1,11.95522]
[1743796011208,16.52375,1811.5,1811.1,11.95522]
[1743796011374,0.14277249,1811.4,1811.1,6.43385]
[1743796011703,5.52103,1811.3,1811.1,0.1]
[1743796012203,0.14277249,1811.2,1811.1,0.1]
[1743796012907,5.66397249,1811.2,1811.1,0.1]
[1743796014279,8.66397249,1811.2,1811.1,0.1]
[1743796014472,9.48837249,1811.2,1811.1,0.1]
[1743796020902,10.03837249,1811.2,1811.1,0.1]
[1743796021397,5.52347,1810.5,1810.3,0.7891]
[1743796021587,5.52347,1810.5,1810.1,6.31241]
[1743796021791,0.14227107,1810.4,1810.2,5.52411]
[1743796022735,0.14227107,1810.4,1810.3,5.52394]
[1743796023025,11.00707,1810.6,1810.3,5.52394]
[1743796023223,0.14227107,1810.4,1810.1,6.31244]
[1743796023397,5.5234,1810.5,1810.1,11.83688]
[1743796023724,16.53034,1810.6,1810.2,5.69683744]
[1743796024028,0.13917738,1810.4,1810.2,5.69673744]
[1743796024221,5.52334,1810.5,1810.2,5.69673744]
[1743796024520,0.13917738,1810.3,1810.2,0.17258744]
[1743796024722,5.52375,1810.4,1810.2,0.17258744]
[1743796024921,0.13917738,1810.3,1810.2,0.17258744]
[1743796025420,5.66311738,1810.3,1810.2,0.17258744]
[1743796025627,0.13917738,1810.3,1810.2,0.17258744]
[1743796025793,11.00716,1810.6,1810.2,5.69683744]
[1743796025996,0.13457814,1810.3,1810.2,0.17258744]
[1743796026196,5.5234,1810.5,1810.2,0.17258744]
[1743796026395,0.13457814,1810.3,1810.2,0.17258744]
[1743796026693,5.52394,1810.3,1810.2,0.17258744]
[1743796026928,5.65851814,1810.3,1810.2,0.17258744]
[1743796027220,5.65851814,1810.3,1810.1,1e-05]
[1743796027221,0.13457814,1810.3,1810.1,1e-05]
[1743796027409,5.485,1810.2,1810.1,1e-05]
[1743796027609,5.61957814,1810.2,1810.1,1e-05]
[1743796028730,11.14382814,1810.2,1810.1,1e-05]
[1743796029028,5.61957814,1810.2,1810.1,1e-05]
[1743796029403,11.14382814,1810.2,1810.1,1e-05]
[1743796030003,5.61957814,1810.2,1810.1,1e-05]
[1743796030990,0.13457814,1810.2,1810.1,1e-05]
[1743796031195,5.484,1810.3,1810.1,1e-05]
[1743796031397,0.13369956,1810.2,1810.1,6.68472636]
[1743796031593,11.00819,1810.6,1810.2,5.52419]
[1743796031949,11.00819,1810.6,1810.3,5.52391]
[1743796032133,5.65704956,1810.5,1810.3,0.7951]
[1743796032299,11.18056956,1810.5,1810.3,0.7951]
[1743796032497,11.18061956,1810.5,1810.3,0.7951]
[1743796032695,5.65704956,1810.5,1810.1,6.50199744]
[1743796032899,0.13369956,1810.5,1810.1,6.50211744]
[1743796033099,5.52368,1810.4,1810.1,6.50211744]
[1743796033313,5.65718956,1810.5,1810.1,11.85394]
[1743796033497,11.047,1810.5,1810.1,11.85394]
[1743796033695,0.13369956,1810.4,1810.2,5.52423]
[1743796034230,0.13369956,1810.4,1810.2,5.69666744]
[1743796034423,5.52334,1810.5,1810.2,5.69666744]
[1743796034932,0.13369956,1810.4,1810.2,0.17258744]
[1743796035129,0.13369956,1810.4,1810.2,5.69671744]
[1743796035342,0.13369956,1810.4,1810.2,0.17258744]
[1743796035632,0.13369956,1810.4,1810.2,5.69676744]
[1743796035803,0.13369956,1810.4,1810.2,0.17258744]
[1743796036004,0.13369956,1810.4,1810.2,5.69682744]
[1743796036202,0.13369956,1810.4,1810.2,5.69673744]
[1743796036633,0.13369956,1810.4,1810.2,5.69668744]
[1743796036831,0.13369956,1810.4,1810.2,6.89930818]
[1743796037134,11.00806,1810.6,1810.2,6.89930818]
[1743796037331,0.13369956,1810.3,1810.2,6.89930818]
[1743796037539,0.13369956,1810.3,1810.2,7.65540818]
[1743796037738,11.00783,1810.7,1810.3,5.52373]
[1743796037935,11.04626,1810.6,1810.2,6.45286744]
[1743796038108,0.13369956,1810.6,1810.3,5.5239]
[1743796038301,5.65674956,1810.6,1810.3,5.52384]
[1743796038544,5.52305,1810.6,1810.4,0.17258744]
[1743796038844,5.65702956,1810.5,1810.4,0.17258744]
[1743796039802,5.65702956,1810.5,1810.2,0.17258744]
[1743796039997,5.52366,1810.4,1810.2,0.17258744]
[1743796040199,11.00794,1810.3,1810.2,0.17258744]
[1743796040503,5.484,1810.3,1810.2,0.17258744]
[1743796040740,5.61849447,1810.3,1810.2,0.17258744]
[1743796041041,11.14243447,1810.3,1810.2,0.17258744]
[1743796041205,5.61849447,1810.3,1810.2,0.17258744]
[1743796042516,11.14243447,1810.3,1810.2,0.17258744]
[1743796044628,14.14243447,1810.3,1810.2,0.17258744]
[1743796044835,14.89893447,1810.3,1810.2,0.17258744]
[1743796045313,5.52425,1810.2,1810.1,1e-05]
[1743796045833,8.65874447,1810.2,1810.1,1e-05]
[1743796046038,5.61849447,1810.2,1810.1,1e-05]
[1743796046407,11.14274447,1810.2,1810.1,1e-05]
[1743796046841,5.61849447,1810.2,1810.1,1e-05]
[1743796047043,11.14274447,1810.2,1810.1,0.17259744]
[1743796047238,5.61849447,1810.2,1810.1,0.17259744]
[1743796048241,5.61849447,1810.2,1810.1,5.69714744]
[1743796049112,0.13449447,1810.2,1810.1,6.48784744]
[1743796049641,0.13449447,1810.2,1810.1,0.96329744]
[1743796049642,0.1331975,1810.2,1810.1,0.96329744]
[1743796049847,5.52396,1810.3,1810.1,0.17259744]
[1743796050143,5.6574475,1810.2,1810.1,0.17259744]
[1743796050708,0.1331975,1810.2,1810.1,0.17259744]
[1743796051140,5.52409,1810.3,1810.1,0.17259744]
[1743796051322,5.52367,1810.4,1810.1,1e-05]
[1743796051323,0.13298836,1810.2,1810.1,1e-05]
[1743796051521,0.13298836,1810.2,1810.1,5.52456]
[1743796052141,0.8178,1810.5,1810.1,1e-05]
[1743796052339,0.13298836,1810.2,1810.1,5.52456]
[1743796052514,5.52307,1810.6,1810.2,5.52409]
[1743796052717,11.04686,1810.5,1810.2,0.8075]
[1743796052916,5.52374,1810.4,1810.2,0.8075]
[1743796053113,11.04761,1810.4,1810.1,0.17259434]
[1743796053426,5.52396,1810.3,1810.1,0.17259434]
[1743796053625,5.52396,1810.3,1810.2,0.17258434]
[1743796054514,6.28384,1810.4,1810.2,0.17258434]
[1743796054714,5.52394,1810.3,1810.2,0.17258434]
[1743796056056,11.00794,1810.3,1810.2,0.17258434]
[1743796057816,14.76724,1810.3,1810.2,0.17258434]
[1743796058016,8.52425,1810.2,1810.1,1e-05]
[1743796058425,16.53204,1810.3,1810.1,1e-05]
[1743796058623,5.52425,1810.2,1810.1,1e-05]
[1743796059942,5.52425,1810.2,1810.1,0.17259434]
[1743796060147,5.65635963,1810.2,1810.1,0.17259434]
[1743796060459,0.13210963,1810.2,1810.1,0.17259434]
[1743796060960,5.52335,1810.5,1810.1,16.48976185]
[1743796061148,0.13210963,1810.2,1810.1,6.47242434]
[1743796061345,5.52335,1810.5,1810.1,6.52763204]
[1743796061527,0.13210963,1810.2,1810.1,1e-05]
[1743796061731,5.52408,1810.3,1810.1,1e-05]
[1743796062030,0.13210963,1810.2,1810.1,1e-05]
[1743796062653,5.65635963,1810.2,1810.1,1e-05]
[1743796063255,0.13210963,1810.2,1810.1,0.17261522]
[1743796064172,6.31935,1810.4,1810.1,5.69716522]
[1743796064352,0.13190046,1810.2,1810.1,1e-05]
[1743796064535,11.04813,1810.3,1810.1,1e-05]
[1743796064743,0.13252814,1810.2,1810.1,1e-05]
[1743796065441,0.13252814,1810.2,1810.1,5.69715545]
[1743796065644,5.5237,1810.4,1810.1,5.69715545]
[1743796065833,0.13265367,1810.2,1810.1,5.69715545]
[1743796066159,5.5237,1810.4,1810.1,5.69715545]
[1743796066337,0.13265367,1810.2,1810.1,5.52456]
[1743796066539,5.5237,1810.4,1810.1,5.52456]
[1743796066864,5.52339,1810.5,1810.1,11.04895]
[1743796067069,0.13265367,1810.3,1810.1,11.04895]
[1743796067275,11.0469,1810.5,1810.1,6.63481919]
[1743796067561,0.13265367,1810.2,1810.1,5.5244]
[1743796067734,5.52364,1810.4,1810.1,5.5244]
[1743796067936,0.13265367,1810.2,1810.1,5.5244]
[1743796068155,5.52364,1810.4,1810.1,5.5244]
[1743796068463,11.047,1810.5,1810.2,0.17258962]
[1743796068766,0.13265367,1810.3,1810.2,0.17258962]
[1743796068950,5.52379,1810.4,1810.2,0.17258962]
[1743796069156,0.13265367,1810.3,1810.2,0.17258962]
[1743796069542,5.52379,1810.4,1810.2,0.17258962]
[1743796069743,0.13265367,1810.3,1810.2,0.17258962]
[1743796069934,5.65659367,1810.3,1810.2,0.17258962]
[1743796070135,5.52394,1810.3,1810.2,0.17258962]
[1743796070362,5.65659367,1810.3,1810.2,0.17258962]
[1743796080542,5.65659367,1810.3,1810.2,0.96238962]
[1743796080748,0.13265367,1810.3,1810.2,0.96238962]
[1743796081152,5.52394,1810.3,1810.2,0.96238962]
[1743796081453,5.65659368,1810.3,1810.2,0.17258962]
[1743796085372,8.65659368,1810.3,1810.2,0.17258962]
[1743796085753,8.52425,1810.2,1810.1,1e-05]
[1743796086183,8.65631784,1810.2,1810.1,1e-05]
[1743796086892,9.42381784,1810.2,1810.1,1e-05]
[1743796087184,8.65631784,1810.2,1810.1,1e-05]
[1743796088297,8.65631784,1810.2,1810.1,0.17264125]
[1743796089296,11.13831784,1810.2,1810.1,0.17264125]
[1743796092863,5.61406784,1810.2,1810.1,0.17264125]
[1743796093069,0.13206784,1810.2,1810.1,0.17264125]
[1743796093781,0.13206784,1810.2,1810.1,6.54403025]
[1743796093992,16.52897,1810.5,1810.1,7.69566928]
[1743796094275,5.52394,1810.3,1810.2,0.17263125]
[1743796094586,5.65621706,1810.3,1810.2,0.17263125]
[1743796095110,0.13227706,1810.3,1810.2,0.17263125]
[1743796095304,11.04752,1810.4,1810.2,0.17263125]
[1743796095468,0.13198417,1810.3,1810.2,0.17263125]
[1743796095669,16.52888,1810.5,1810.2,0.17263125]
[1743796095905,0.13198417,1810.4,1810.2,0.17263125]
[1743796096210,0.13198417,1810.4,1810.3,0.17263125]
[1743796096600,5.65562417,1810.4,1810.3,0.17263125]
[1743796097173,0.13198417,1810.4,1810.3,0.17263125]
[1743796097673,5.52248,1810.8,1810.4,11.04691]
[1743796097893,0.13223523,1810.7,1810.5,1.929091]
[1743796098176,5.65497523,1810.7,1810.5,0.99703125]
[1743796098574,0.13223523,1810.7,1810.5,0.99703125]
[1743796098996,11.17795523,1810.7,1810.5,0.99703125]
[1743796099303,5.52303,1810.6,1810.5,0.8244]
[1743796099516,5.52334,1810.5,1810.3,0.7554]
[1743796099807,5.65717211,1810.4,1810.2,0.77]
[1743796099972,5.65717211,1810.4,1810.2,1.399446]
[1743796100174,5.65717211,1810.4,1810.3,0.17258695]
[1743796101404,5.52394,1810.3,1810.2,0.17258695]
[1743796101606,5.65705381,1810.3,1810.2,0.17258695]
[1743796102219,5.52425,1810.2,1810.1,1e-05]
[1743796102585,5.65736381,1810.2,1810.1,1e-05]
[1743796103389,6.49036381,1810.2,1810.1,1e-05]
[1743796105419,11.13836381,1810.2,1810.1,1e-05]
[1743796105784,5.61411381,1810.2,1810.1,1e-05]
[1743796105980,5.61411381,1810.2,1810.1,0.17259695]
[1743796106302,11.13836381,1810.2,1810.1,0.17259695]
[1743796106681,5.61411381,1810.2,1810.1,0.17259695]
[1743796106878,11.13836381,1810.2,1810.1,0.17259695]
[1743796108998,5.61411381,1810.2,1810.1,0.17259695]
[1743796110403,0.13311381,1810.2,1810.1,0.17259695]
[1743796110611,5.65736381,1810.2,1810.1,0.17259695]
[1743796112203,5.65736381,1810.2,1810.1,1e-05]
[1743796112403,0.13311381,1810.2,1810.1,1e-05]
[1743796112808,5.65736381,1810.2,1810.1,1e-05]
[1743796113196,5.65736381,1810.2,1810.1,0.17259695]
[1743796115725,5.65736381,1810.2,1810.1,0.17261741]
[1743796118514,5.65736381,1810.2,1810.1,1e-05]
[1743796121749,8.65736381,1810.2,1810.1,1e-05]
[1743796123904,5.65736381,1810.2,1810.1,1e-05]
[1743796124103,0.13311381,1810.2,1810.1,1e-05]
[1743796124652,5.65736381,1810.2,1810.1,1e-05]
[1743796124814,0.13311381,1810.2,1810.1,0.17261741]
[1743796125209,0.13311381,1810.2,1810.1,0.94381741]
[1743796125523,5.52275,1810.7,1810.1,0.94381741]
[1743796125524,5.52117,1811.3,1810.9,5.52195]
[1743796125835,5.52117,1811.3,1811.0,0.552195]
[1743796125836,5.63486562,1811.2,1811.0,0.552195]
[1743796126018,5.5215,1811.1,1811.0,0.17260741]
[1743796126205,15.36095774,1811.1,1811.0,0.17260741]
[1743796126404,15.49808635,1811.1,1811.0,7.41e-06]
[1743796126604,5.52365,1810.4,1810.1,0.77561]
[1743796126910,6.14831945,1810.3,1810.1,0.77561]
[1743796127144,11.12002445,1810.3,1810.1,0.77561]
[1743796127345,0.11695445,1810.3,1810.1,0.77561]
[1743796127657,11.00172,1810.7,1810.3,5.5237]
[1743796127967,0.11695445,1810.6,1810.4,5.5787206]
[1743796128161,0.11695445,1810.6,1810.5,6.31393]
[1743796128316,3.0,1810.9,1810.6,5.52294]
[1743796128519,0.11695445,1810.8,1810.6,5.52294]
[1743796129218,0.11695445,1810.8,1810.5,11.83713]
[1743796129421,0.11695445,1810.8,1810.5,13.020843]
[1743796130055,0.11695445,1810.8,1810.7,5.52272]
[1743796130263,11.00081,1811.0,1810.7,5.52272]
[1743796130462,0.11695445,1810.9,1810.7,5.52272]
[1743796130757,0.11695445,1810.9,1810.7,11.04513]
[1743796130961,0.11695445,1810.9,1810.7,6.63259528]
[1743796131256,0.11695445,1810.9,1810.8,5.52242]
[1743796131455,16.52066,1811.2,1810.8,5.52242]
[1743796131615,5.63846445,1811.1,1810.8,5.52242]
[1743796131815,5.52212,1810.9,1810.6,5.52296]
[1743796132055,0.12113778,1810.8,1810.6,6.8250103]
[1743796132215,5.52199,1811.0,1810.7,5.52272]
[1743796132415,0.12113778,1810.9,1810.7,5.52272]
[1743796133411,0.12113778,1810.9,1810.7,5.52256]
[1743796133761,5.52152,1811.1,1810.7,5.52256]
[1743796133965,0.12113778,1810.8,1810.7,11.04514]
[1743796134135,5.52152,1811.1,1810.7,12.27985903]
[1743796134318,0.12113778,1811.0,1810.7,6.75727903]
[1743796134932,0.12113778,1811.0,1810.7,12.27987903]
[1743796135130,0.12113778,1811.0,1810.8,0.82632218]
[1743796135371,0.12113778,1811.0,1810.9,5.52211]
[1743796135539,5.477,1811.3,1811.0,5.52177]
[1743796135864,0.12113778,1811.2,1811.0,5.52177]
[1743796136232,0.7699,1811.1,1810.6,0.7881]
[1743796136573,5.52181,1811.0,1810.6,6.31093]
[1743796136732,5.52181,1811.0,1810.6,11.83378]
[1743796136733,5.64294778,1811.0,1810.6,11.83378]
[1743796137352,0.12113778,1811.0,1810.7,5.52267]
[1743796138188,0.12113778,1811.0,1810.7,11.04521]
[1743796138378,0.12113778,1811.0,1810.9,5.52211]
[1743796138553,0.12113778,1811.0,1810.9,6.31741]
[1743796138755,11.7764,1811.3,1810.9,6.31741]
[1743796138989,0.12113778,1811.0,1810.9,6.31741]
[1743796139171,11.7764,1811.3,1810.9,6.31741]
[1743796139657,0.12113778,1811.2,1810.9,6.31741]
[1743796139853,11.16378778,1811.2,1810.8,5.52241]
[1743796140193,5.52151,1811.1,1810.7,6.29788]
[1743796140355,5.52151,1811.1,1810.8,0.17252087]
[1743796140927,5.64304778,1811.0,1810.8,0.17252087]
[1743796141197,0.12113778,1811.0,1810.8,0.17252087]
[1743796141356,0.12113778,1811.0,1810.9,6.32651]
[1743796141557,0.12113778,1811.0,1810.9,10.2496447]
[1743796141762,5.52054,1811.5,1811.1,5.52144]
[1743796141984,5.52054,1811.5,1811.1,9.44445254]
[1743796142210,0.11141922,1811.4,1811.2,5.52103]
[1743796142500,10.99606,1811.6,1811.0,0.8044]
[1743796142705,5.52104,1811.3,1811.0,6.32607]
[1743796142991,5.52104,1811.3,1811.0,6.3262]
[1743796143192,0.11376034,1811.2,1811.0,11.84786]
[1743796143396,0.11376034,1811.2,1811.1,5.57670852]
[1743796143563,11.8068,1811.7,1811.3,5.52085]
[1743796143897,5.63369855,1811.6,1811.3,5.52085]
[1743796144449,11.04077,1811.5,1811.1,5.69401087]
[1743796144669,5.52029,1811.5,1811.1,11.21535087]
[1743796144854,0.11371855,1811.4,1811.1,5.69386087]
[1743796145162,5.63443855,1811.4,1811.1,0.17252087]
[1743796145363,0.90001855,1811.4,1810.8,0.7927]
[1743796145594,5.52152,1811.1,1810.8,0.7927]
[1743796145955,5.6359093,1811.0,1810.7,5.52269]
[1743796146171,6.4030093,1811.0,1810.7,5.52269]
[1743796146495,6.4030093,1811.0,1810.4,6.33101]
[1743796146496,5.5227,1810.8,1810.4,6.33101]
[1743796146797,11.10949912,1810.9,1810.5,5.52304]
[1743796146962,5.5216,1811.1,1810.7,3.86791494]
[1743796147296,11.83409,1811.2,1810.8,5.5223]
[1743796147496,0.11238093,1811.1,1810.8,5.5223]
[1743796147695,11.83409,1811.2,1810.8,5.5223]
[1743796147870,0.11238093,1811.0,1810.8,5.5223]
[1743796148073,11.83409,1811.2,1810.8,5.52227]
[1743796148274,0.11238093,1810.9,1810.8,5.52227]
[1743796148471,11.04328,1811.1,1810.7,6.33706]
[1743796148674,5.52245,1810.8,1810.5,6.33777]
[1743796148874,5.52313,1810.6,1810.3,6.29772]
[1743796149077,11.04639,1810.6,1810.2,5.52414]
[1743796149265,0.11254816,1810.5,1810.3,5.52375]
[1743796149459,0.11254816,1810.5,1810.4,5.52364]
[1743796149664,10.99711,1810.9,1810.4,5.52364]
[1743796149665,5.475,1810.9,1810.6,5.52282]
[1743796149964,0.1113774,1810.8,1810.2,6.31424]
[1743796150164,0.1113774,1810.8,1810.5,5.52316]
[1743796150396,0.1113774,1810.8,1810.5,11.0464]
[1743796150598,0.1113774,1810.8,1810.5,1.64881634]